Workbook

Sheet Sheet1
A1: Q2)
A2: Given: Generating function y=exp(x) within 0<x<1
A3: Solution:
A4: xin | B4: 0 | D4: yin | E4: =+EXP(B4) -> 1 | F4: Conversion | G4: =PI()/180 -> 0.01745329252
A5: xfin | B5: 1 | D5: yfin | E5: =+EXP(B5) -> 2.718281828
A6: qin | B6: 20
A7: fin | B7: 60
A8: Dq | B8: 45 | D8: rx | E8: =+B8/(B5-B4) -> 45
A9: Df | B9: 55 | D9: ry | E9: =+B9/(E5-E4) -> 32.00871888
A11: Use Chebyshev Spacing for the precission points
A13: x1 | B13: =+(B5+B4)/2-(B5-B4)/2*COS(PI()/6) -> 0.06698729811 | D13: y1 | E13: =+EXP(B13) -> 1.069281896 | G13: q1 | H13: =+B6+E8*(B13-B4) -> 23.01442841 | I13: f1 | J13: =+B7+E9*(E13-E4) -> 62.21762474
A14: x2 | B14: =+(B5+B4)/2-(B5-B4)/2*COS(PI()/2) -> 0.5 | D14: y2 | E14: =+EXP(B14) -> 1.648721271 | G14: q2 | H14: =+B6+E8*(B14-B4) -> 42.5 | I14: f2 | J14: =+B7+E9*(E14-E4) -> 80.76473678
A15: x3 | B15: =+(B5+B4)/2-(B5-B4)/2*COS(5*PI()/6) -> 0.9330127019 | D15: y3 | E15: =+EXP(B15) -> 2.542156412 | G15: q3 | H15: =+B6+E8*(B15-B4) -> 61.98557159 | I15: f3 | J15: =+B7+E9*(E15-E4) -> 109.3624511
H17: For drowing mechanism.
A18: q1 | B18: =+H13 -> 23.01442841 | C18: f1 | D18: =+J13 -> 62.21762474 | H18: 0.5
A19: q2 | B19: =+H14 -> 42.5 | C19: f2 | D19: =+J14 -> 80.76473678 | H19: 20 | I19: 0 | J19: 0 | L19: For Deviation
A20: q3 | B20: =+H15 -> 61.98557159 | C20: f3 | D20: =+J15 -> 109.3624511 | H20: =FourBar(B30,B31,B32,B29,1,H19*PI()/180) -> 1.054472189 | I20: =+B30*COS(H19*PI()/180) -> 0.3474123913 | J20: =+B30*SIN(H19*PI()/180) -> 0.1264477694 | L20: =FrbarTA(B30,B31,B32,B29,H19*PI()/180)*180/PI() -> 55.61894447
A21: Coef. Matrix | I21: =+B29+B32*COS(H20) -> 1.108025762 | J21: =+B32*SIN(H20) -> 0.1902896703
A22: =+COS(D18*PI()/180) -> 0.4661145126 | B22: =-COS(B18*PI()/180) -> -0.920406429 | C22: 1 | E22: =+COS((D18-B18)*PI()/180) -> 0.7749092289 | I22: =+B29 -> 1 | J22: 0
A23: =+COS(D19*PI()/180) -> 0.1604886995 | B23: =-COS(B19*PI()/180) -> -0.7372773368 | C23: 1 | E23: =+COS((D19-B19)*PI()/180) -> 0.7851576706 | H23: =+H19*PI()/180+PI() -> 3.490658504 | I23: =+H20*180/PI() -> 60.41680602
A24: =+COS(D20*PI()/180) -> -0.331542917 | B24: =-COS(B20*PI()/180) -> -0.4696938947 | C24: 1 | E24: =+COS((D20-B20)*PI()/180) -> 0.6771729514 | G24: For Error | H24: =+B4+1/E8*(H23*180/PI()-B6-180) -> 0
A25: Inverse Matrix | H25: =+EXP(H24) -> 1 | I25: =+(I23-$B$7)/$E$9 -> 0.01302164029 | J25: =+H25-I25-1 -> -0.01302164029
A26: =MINVERSE(A22:C24) -> -32.14255588 | B26: 54.14031864 | C26: -21.99776277 | D26: K1 | E26: =MMULT(A26:C28,E22:E24) -> 2.704833346
A27: -59.10363363 | B27: 95.81590064 | C27: -36.71226701 | D27: K2 | E27: 4.570083989
A28: -38.41725261 | B28: 62.95398272 | C28: -23.53673011 | D28: K3 | E28: 3.720481837
A29: a1 | B29: 1
A30: a2 | B30: =+B29/E26 -> 0.3697085447
A31: a3 | B31: =+SQRT(B29^2+B30^2+B32^2-2*E28*B30*B32) -> 0.7632879455
A32: a4 | B32: =+B29/E27 -> 0.2188143593
A33: For the three positions of the mechanism
A34: For q1 | D34: For q2 | G34: For q3
A35: 0 | B35: 0 | D35: 0 | E35: 0 | G35: 0 | H35: 0
A36: =+B30*COS(B18*PI()/180) -> 0.3402821214 | B36: =+B30*SIN(B18*PI()/180) -> 0.1445423324 | D36: =+B30*COS(B19*PI()/180) -> 0.2725777312 | E36: =+B30*SIN(B19*PI()/180) -> 0.2497714725 | G36: =+B30*COS(B20*PI()/180) -> 0.1736498463 | H36: =+B30*SIN(B20*PI()/180) -> 0.3263895508
A37: =+B29+B32*COS(D18*PI()/180) -> 1.101992548 | B37: =+B32*SIN(D18*PI()/180) -> 0.1935904024 | D37: =+B29+B32*COS(D19*PI()/180) -> 1.035117232 | E37: =+B32*SIN(D19*PI()/180) -> 0.2159780171 | G37: =+B29+B32*COS(D20*PI()/180) -> 0.927453649 | H37: =+B32*SIN(D20*PI()/180) -> 0.2064382493
A38: =+B29 -> 1 | B38: 0 | D38: =+B29 -> 1 | E38: 0 | G38: =+B29 -> 1 | H38: 0
A39: x | B39: y(req) | C39: q | D39: f | E39: f in degrees | F39: y (realized) | G39: error | H39: q in degrees | I39: m | J39: Deviation
A40: 0 | B40: =+EXP(A40) -> 1 | C40: =+($B$6+$E$8*(A40-$A$40))*PI()/180 -> 0.3490658504 | D40: =FourBar(($B$30),$B$31,($B$32),$B$29,1,C40) -> 1.054472189 | E40: =+D40*180/PI() -> 60.41680602 | F40: =+(E40-$B$7)/$E$9+1 -> 1.01302164 | G40: =+B40-F40 -> -0.01302164029 | H40: =+C40*180/PI() -> 20 | I40: =FrbarTA($B$30,$B$31,$B$32,$B$29,C40)/conv -> 55.61894447 | J40: =90-I40 -> 34.38105553
A41: 0.1 | B41: =+EXP(A41) -> 1.105170918 | C41: 0.4276056667 | D41: 1.10360734 | E41: =+D41*180/PI() -> 63.23204284 | F41: =+(E41-$B$7)/$E$9+1 -> 1.100973827 | G41: 0.004197091263 | H41: 24.5 | I41: 60.07397671 | J41: =90-I41 -> 29.92602329
A42: 0.2 | B42: 1.221402758 | C42: 0.5061454831 | D42: 1.165233165 | E42: 66.76294252 | F42: 1.211284386 | G42: 0.01011837214 | H42: 29 | I42: 65.124366 | J42: 24.875634
A43: 0.3 | B43: 1.349858808 | C43: 0.5846852994 | D43: 1.237545625 | E43: 70.90614127 | F43: 1.340724079 | G43: 0.009134728307 | H43: 33.5 | I43: 70.70194722 | J43: 19.29805278
A44: 0.4 | B44: 1.491824698 | C44: 0.6632251158 | D44: 1.319260709 | E44: 75.58807072 | F44: 1.486994521 | G44: 0.004830176682 | H44: 38 | I44: 76.76566982 | J44: 13.23433018
A45: 0.5 | B45: 1.648721271 | C45: 0.7417649321 | D45: 1.409610576 | E45: 80.76473678 | F45: 1.648721271 | G45: 3.996802889e-15 | H45: 42.5 | I45: 83.30225292 | J45: 6.697747085
A46: 0.6 | B46: 1.8221188 | C46: 0.8203047484 | D46: 1.50835019 | E46: 86.42209991 | F46: 1.825465712 | G46: -0.003346911376 | H46: 47 | I46: 90.32846503 | J46: -0.3284650339
A47: 0.7 | B47: 2.013752707 | C47: 0.8988445648 | D47: 1.615820309 | E47: 92.57968416 | F47: 2.017837805 | G47: -0.00408509729 | H47: 51.5 | I47: 97.89769852 | J47: -7.897698517
A48: 0.8 | B48: 2.225540928 | C48: 0.9773843811 | D48: 1.733131681 | E48: 99.30113064 | F48: 2.227825793 | G48: -0.002284864554 | H48: 56 | I48: 106.1153769 | J48: -16.1153769
A49: 0.9 | B49: 2.459603111 | C49: 1.055924197 | D49: 1.862619128 | E49: 106.7202149 | F49: 2.459609023 | G49: -5.911882216e-06 | H49: 60.5 | I49: 115.174199 | J49: -25.17419896
A50: 1 | B50: 2.718281828 | C50: 1.134464014 | D50: 2.009018138 | E50: 115.1082603 | F50: 2.721664041 | G50: -0.003382212691 | H50: 65 | I50: 125.4429061 | J50: -35.44290612

Sheet Sheet2

Sheet Sheet3
